bitfinex-derivatives/quotes_ETHF0:USTF0_20250923
["timestamp","ask_amount","ask_price","bid_price","bid_amount"]
[1758662292341,0.5388,4172.0,4171.9,0.84127]
[1758662292848,0.2179,4172.0,4171.9,1.16897]
[1758662295245,0.5388,4172.0,4171.9,1.16897]
[1758662297643,0.3209,4171.9,4171.6,0.759]
[1758662297947,0.7487,4171.7,4171.6,1.169]
[1758662299446,0.4528,4172.0,4171.9,0.43127]
[1758662299750,0.5388,4172.3,4172.2,1.16894]
[1758662300139,0.7487,4172.3,4172.2,1.16894]
[1758662301548,0.3209,4172.3,4172.2,1.16894]
[1758662301745,0.5388,4172.5,4172.4,1.16892]
[1758662302050,0.7487,4172.5,4172.4,1.16892]
[1758662302549,0.8806,4172.5,4172.4,1.16892]
[1758662303849,0.7487,4172.5,4172.4,1.16892]
[1758662310553,0.8747,4172.5,4172.4,0.84122]
[1758662312258,0.7703,4172.1,4172.0,3.63906]
[1758662312446,0.7703,4172.1,4172.0,3.84236]
[1758662312856,0.7703,4172.1,4172.0,0.63456]
[1758662314253,0.7703,4172.1,4172.0,0.43126]
[1758662314952,1.20157,4171.9,4171.8,0.43127]
[1758662315157,0.7703,4171.9,4171.8,0.43127]
[1758662315350,0.7703,4171.9,4171.8,0.63457]
[1758662315748,0.7703,4171.9,4171.8,0.93977]
[1758662317759,0.7703,4171.9,4171.8,1.16217]
[1758662319261,1.20157,4171.9,4171.8,0.7309]
[1758662319561,0.7703,4171.9,4171.8,1.16218]
[1758662320163,0.7703,4171.9,4171.8,0.7309]
[1758662320356,0.7703,4171.9,4171.8,1.16218]
[1758662323460,1.20157,4171.9,4171.8,0.2033]
[1758662323759,0.8963,4171.5,4171.4,0.63462]
[1758662323961,0.8963,4171.5,4171.4,0.93982]
[1758662324162,0.8963,4171.5,4171.4,1.16222]
[1758662327365,0.8963,4171.5,4171.1,1.07839]
[1758662327366,0.2231,4171.3,4171.2,0.43134]
[1758662327571,0.7703,4171.3,4171.2,1.16224]
[1758662333171,0.7703,4171.3,4171.2,1.16225]
[1758662338475,0.7703,4171.3,4171.2,0.2033]
[1758662338776,0.7703,4171.3,4171.2,0.63465]
[1758662339871,0.4361,4170.8,4170.7,0.43139]
[1758662340173,0.4361,4170.3,4170.2,0.7492]
[1758662340366,0.7408,4170.3,4170.2,0.7492]
[1758662340569,0.3047,4170.9,4170.5,1.07853]
[1758662340773,3.2078,4171.6,4171.3,1.07833]
[1758662340969,0.5245,4171.9,4171.8,1.18048]
[1758662341276,0.7408,4171.9,4171.8,1.18048]
[1758662342173,1.26133157,4171.9,4171.8,0.4247]
[1758662342376,0.2198,4170.8,4170.7,3.4218]
[1758662342576,0.7408,4170.8,4170.7,1.1806]
[1758662343877,0.7408,4170.8,4170.7,0.8561]
[1758662344082,0.7408,4170.8,4170.7,0.6454]
[1758662345271,0.4361,4170.3,4170.2,3.957]
[1758662345477,0.7408,4170.3,4170.2,4.38845]
[1758662346680,0.5245,4170.3,4170.2,4.38845]
[1758662347183,0.7408,4170.3,4170.2,0.43145]
[1758662347579,0.7408,4170.3,4170.2,0.64545]
[1758662348692,0.7408,4170.3,4170.2,0.214]
[1758662348888,0.7408,4170.3,4170.0,0.43146]
[1758662349186,0.43143,4170.4,4170.0,0.64546]
[1758662349187,0.7408,4170.1,4170.0,0.64546]
[1758662349884,0.7408,4170.1,4170.0,0.96996]
[1758662351784,0.7408,4170.1,4170.0,0.64546]
[1758662351981,0.7408,4170.1,4170.0,0.43146]
[1758662353189,0.4487,4170.0,4169.9,0.43148]
[1758662353389,0.4487,4170.0,4169.4,1.38922]
[1758662353390,1.32257,4170.0,4169.4,0.3104]
[1758662353587,0.5384,4169.0,4168.9,0.7351]
[1758662353885,0.5384,4169.0,4168.9,1.16668]
[1758662353886,0.8911,4169.0,4168.9,1.16668]
[1758662355087,0.7606,4169.0,4168.9,1.16668]
[1758662355388,0.8911,4169.0,4168.9,0.43158]
[1758662355588,0.8911,4169.0,4168.9,0.65478]
[1758662355795,0.8911,4169.0,4168.9,0.96518]
[1758662355995,0.8911,4169.0,4168.9,1.16668]
[1758662361793,4.0989,4169.0,4168.9,1.16668]
[1758662361991,4.0989,4169.0,4168.9,0.65478]
[1758662362794,0.7606,4168.8,4168.7,0.43161]
[1758662363493,0.7606,4168.8,4168.7,0.63751]
[1758662366901,1.1922,4168.8,4168.7,0.63751]
[1758662367104,0.7606,4168.8,4168.7,0.63751]
[1758662367599,1.0026,4168.8,4168.7,0.63751]
[1758662370095,1.0026,4168.8,4168.7,0.96531]
[1758662371003,1.4342,4168.8,4168.7,0.96531]
[1758662371802,1.4342,4168.8,4168.7,0.63751]
[1758662373506,1.0026,4168.8,4168.7,0.63751]
[1758662374312,1.4342,4168.8,4168.7,0.63751]
[1758662374905,1.4342,4168.8,4168.7,0.43161]
[1758662375205,1.0026,4168.8,4168.7,0.43161]
[1758662375396,1.0026,4168.8,4168.7,0.63751]
[1758662376204,1.0026,4168.8,4168.7,0.96531]
[1758662378804,0.7606,4168.8,4168.7,1.17461]
[1758662379006,0.241,4168.8,4168.7,1.17461]
[1758662379306,0.7683,4168.8,4168.7,1.17461]
[1758662383414,1.29029973,4168.8,4168.7,1.17461]
[1758662384613,1.29032302,4168.8,4168.7,1.17461]
[1758662386113,0.52202302,4168.8,4168.7,1.17461]
[1758662392322,3.2078,4169.0,4168.9,0.43159]
[1758662392523,0.73894364,4169.0,4168.9,1.17459]
[1758662392725,3.94674364,4169.0,4168.9,1.17459]
[1758662393223,4.25744364,4169.0,4168.9,1.17459]
[1758662393418,3.2078,4169.0,4168.9,1.17459]
[1758662393815,3.5225,4169.0,4168.9,1.17459]
[1758662395417,3.7248,4169.0,4168.9,1.17459]
[1758662395919,0.517,4169.0,4168.9,1.17459]
[1758662396526,0.8453,4169.0,4168.9,0.84679]
[1758662397023,0.8453,4169.0,4168.9,1.16979]
[1758662398917,0.8453,4169.0,4168.9,0.43159]
[1758662399121,0.8453,4169.0,4168.5,0.323]
[1758662399122,0.4079,4168.6,4168.5,0.5279]
[1758662399323,0.7226,4168.6,4168.5,0.95953]
[1758662400229,0.7226,4168.6,4168.5,1.17453]
[1758662400820,0.3637,4169.0,4168.9,0.7429]
[1758662400821,0.2023,4169.0,4168.9,0.7429]
[1758662401120,0.4079,4169.0,4168.9,1.17449]
[1758662401321,0.7226,4169.0,4168.9,1.17449]
[1758662402029,0.8453,4169.0,4168.9,1.17449]
[1758662402623,0.7226,4169.0,4168.9,1.17449]
[1758662402825,0.517,4169.0,4168.9,1.17449]
[1758662403729,0.7226,4169.0,4168.9,1.17449]
[1758662408929,0.8453,4169.0,4168.9,0.63649]
[1758662409225,0.43159,4168.9,4168.7,0.43161]
[1758662409431,1.91706109,4168.8,4168.7,0.43161]
[1758662409622,0.2023,4168.4,4168.3,0.2049]
[1758662409822,0.7226,4168.4,4168.3,0.2049]
[1758662410022,0.7226,4168.4,4168.3,0.63655]
[1758662410225,0.7226,4168.4,4168.3,0.43165]
[1758662410626,1.15424,4168.4,4168.3,0.43165]
[1758662410827,1.15426,4168.3,4168.2,0.43166]
[1758662411220,0.2023,4168.1,4168.0,0.43168]
[1758662411426,1.15427,4168.1,4168.0,0.43168]
[1758662411942,1.27698,4168.0,4167.9,0.00694787]
[1758662412233,1.27698,4168.0,4167.1,3.7314]
[1758662412234,0.7261,4167.2,4167.1,3.7314]
[1758662412424,0.7261,4167.2,4167.1,3.9502]
[1758662412826,0.7261,4167.2,4167.1,4.38198]
[1758662414532,0.5149,4167.2,4167.1,4.38198]
[1758662419242,0.1238,4167.5,4167.4,0.43174]
[1758662419448,0.3292,4167.5,4167.4,0.86654]
[1758662419644,0.3292,4167.5,4167.4,1.17414]
[1758662420036,0.6387,4167.5,4167.4,1.17414]
[1758662420645,0.5149,4167.5,4167.4,1.17414]
[1758662420946,0.7261,4167.5,4167.4,1.17414]
[1758662436555,0.5149,4167.5,4167.4,1.17414]
[1758662436749,3.2078,4168.0,4167.9,1.16869]
[1758662437053,3.2078,4168.5,4168.4,1.16864]
[1758662437454,3.7367,4168.5,4168.4,1.16864]
[1758662438457,3.2078,4168.5,4168.4,1.16864]
[1758662442166,0.7471,4168.8,4168.5,1.07909]
[1758662442368,0.7471,4168.8,4168.7,0.737]
[1758662442570,0.7471,4168.8,4168.7,1.16861]
[1758662445273,3.2078,4169.0,4168.9,0.43159]
[1758662445464,3.2078,4169.0,4168.9,1.16859]
[1758662446064,0.7471,4170.0,4169.9,0.63769]
[1758662446267,0.7471,4170.0,4169.9,1.16849]
[1758662449677,0.124,4170.5,4170.4,1.16844]
[1758662449678,0.4403,4170.5,4170.4,1.16844]
[1758662450381,0.7471,4170.5,4170.4,1.16844]
[1758662450973,3.2078,4171.2,4170.9,0.43138]
[1758662451177,3.2078,4171.2,4170.9,0.63758]
[1758662451178,1.1121,4171.0,4170.9,0.63758]
[1758662451780,1.1121,4171.0,4170.9,0.43138]
[1758662453579,1.1121,4171.0,4170.9,0.63758]
[1758662454985,0.7471,4171.0,4170.9,1.18158]
[1758662455984,0.753,4171.2,4171.1,0.43136]
[1758662456289,0.753,4171.2,4171.1,1.18356]
[1758662457382,0.3277,4171.1,4171.0,0.43137]
[1758662457681,0.5338,4170.2,4170.1,4.39147]
[1758662457882,0.8784,4171.0,4170.9,0.96238]
[1758662458088,1.0444,4171.0,4170.9,0.96238]
[1758662458292,1.0444,4171.0,4170.9,0.63958]
[1758662458788,1.47577,4171.0,4170.9,0.63958]
[1758662459291,1.47577,4171.0,4170.9,0.2082]
[1758662459493,0.65059,4170.8,4170.7,0.2082]
[1758662459684,0.4253,4170.7,4170.6,0.43141]
[1758662459992,0.753,4170.7,4170.6,0.63961]
[1758662460193,0.753,4170.7,4170.6,0.96241]
[1758662460382,0.753,4170.7,4170.6,1.18361]
[1758662460991,0.753,4170.7,4170.6,0.43141]
[1758662461688,0.753,4170.7,4170.6,0.63961]
[1758662461890,0.753,4170.7,4170.6,0.96241]
[1758662462289,0.2192,4170.3,4170.2,0.3228]
[1758662462479,0.753,4170.3,4170.2,0.43146]
[1758662462688,0.753,4170.3,4170.2,0.63966]
[1758662463584,0.753,4170.3,4170.2,1.18366]
[1758662466487,1.18445,4170.3,4170.2,1.18366]
[1758662466886,0.753,4170.3,4170.2,1.18366]
[1758662470984,0.5338,4170.3,4170.2,1.18366]
[1758662471192,0.75912,4170.6,4170.5,1.18363]
[1758662471394,0.96522,4170.6,4170.5,1.18363]
[1758662471594,1.18442,4170.6,4170.5,1.18363]
[1758662472196,0.753,4170.6,4170.5,1.18363]
[1758662472692,1.18441,4170.6,4170.5,1.18363]
[1758662472900,1.18225,4170.3,4170.2,0.2176]
[1758662473194,1.18226,4170.2,4170.1,3.2078]
[1758662473495,0.1292,4170.5,4170.0,0.43148]
[1758662473496,0.85788,4170.1,4170.0,0.43148]
[1758662473691,1.18228,4170.1,4170.0,0.43148]
[1758662473893,1.18228,4170.1,4169.6,0.43152]
[1758662473894,0.7508,4169.8,4169.6,0.43152]
[1758662474195,1.18232,4169.6,4169.5,0.43153]
[1758662474386,1.18232,4169.6,4169.2,0.3239]
[1758662474387,0.56074,4169.5,4169.4,0.43154]
[1758662474690,0.7508,4169.2,4169.1,3.85697]
[1758662474895,0.7508,4169.2,4169.1,4.40027]
[1758662475188,0.7508,4169.2,4169.1,3.9687]
[1758662475388,0.5422,4169.1,4169.0,0.43158]
[1758662475594,0.7508,4169.1,4169.0,0.43158]
[1758662475793,0.7508,4168.9,4168.8,0.64919]
[1758662476187,0.7508,4168.9,4168.8,0.97309]
[1758662476400,0.2178,4168.9,4168.8,1.19249]
[1758662479503,0.5422,4168.9,4168.8,0.7609]
[1758662479697,0.7508,4168.9,4168.8,1.1925]
[1758662484300,0.7508,4168.9,4168.8,0.2176]
[1758662484508,0.1235,4169.0,4168.1,4.15487]
[1758662484509,0.7585,4168.2,4168.1,4.15487]
[1758662484798,0.3352,4167.9,4167.8,0.3035]
[1758662485001,0.7585,4167.7,4167.6,3.2078]
[1758662485208,1.19021,4167.7,4167.6,3.2078]
[1758662485400,1.19023,4167.6,4167.5,0.2119]
[1758662485698,0.4233,4167.3,4167.2,0.5154]
[1758662485892,0.7585,4167.3,4167.2,0.2119]
[1758662486301,1.19027,4167.3,4167.1,0.241]
[1758662487307,0.85507,4167.3,4167.1,0.67277]
[1758662487498,0.7585,4167.2,4167.1,0.88467]
[1758662487698,0.7585,4167.2,4167.1,0.4529]
[1758662492508,0.7585,4167.2,4167.1,0.88468]
[1758662492909,0.7585,4167.2,4167.1,0.64368]
[1758662493409,0.7585,4167.2,4167.1,0.94718]
[1758662494211,0.7585,4167.2,4167.1,0.64368]
[1758662495303,0.7585,4167.2,4167.1,0.94718]
[1758662495802,0.7585,4167.2,4167.1,1.15478]
[1758662502606,3.2078,4167.6,4167.5,0.43174]
[1758662502816,0.4233,4168.0,4167.9,1.15469]
[1758662503008,0.5468,4168.0,4167.9,1.15469]
[1758662503208,0.882,4168.0,4167.9,1.15469]
[1758662503913,0.7585,4168.0,4167.9,1.15469]
[1758662504413,0.5482,4168.0,4167.9,1.15469]
[1758662506119,3.756,4168.3,4168.2,1.15466]
[1758662507421,3.4208,4168.3,4168.2,1.15466]
[1758662507614,3.756,4168.3,4168.2,1.15466]
[1758662507811,0.5482,4168.3,4168.2,1.15466]
[1758662508414,0.9995,4168.6,4168.5,1.15463]
[1758662508624,0.213,4168.6,4168.5,1.27863]
[1758662508918,3.756,4168.9,4168.8,1.1546]
[1758662509121,3.9663,4168.9,4168.8,1.1546]
[1758662509512,3.756,4168.9,4168.8,1.1546]
[1758662509722,3.6311,4168.9,4168.8,0.8511]
[1758662510019,3.9663,4168.9,4168.8,0.6435]
[1758662510919,3.9663,4168.9,4168.8,0.4316]
[1758662511311,4.39789,4168.9,4168.3,0.3035]
[1758662511512,0.4233,4168.4,4168.3,0.94705]
[1758662511714,0.7585,4168.4,4168.3,1.15465]
[1758662513016,0.7585,4168.4,4168.3,0.85115]
[1758662513233,0.7585,4168.4,4168.3,0.43165]
[1758662514814,0.7585,4168.4,4168.3,1.19395]
[1758662515813,0.5482,4168.4,4168.3,1.19395]
[1758662516320,0.213,4168.4,4168.3,1.19395]
[1758662516528,0.5216,4168.4,4168.3,1.19395]
[1758662521024,0.3086,4168.8,4168.6,0.3355]
[1758662521224,0.5131,4169.2,4169.1,0.86067]
[1758662521420,0.5131,4169.2,4169.1,1.19617]
[1758662521624,0.7369,4169.2,4169.1,1.19617]
[1758662523838,0.5131,4169.2,4169.1,1.19617]
[1758662524130,0.4283,4169.4,4169.3,1.19615]
[1758662524722,0.7369,4169.4,4169.3,1.19615]
[1758662528624,0.7369,4169.4,4169.0,0.3355]
[1758662528828,0.7369,4169.4,4168.2,0.4291]
[1758662528829,0.7369,4168.3,4168.2,0.4291]
[1758662529021,0.7369,4168.3,4168.2,0.2142]
[1758662529223,0.7369,4168.3,4168.2,0.64586]
[1758662531330,1.16855,4168.3,4168.2,0.64586]
[1758662531529,0.7369,4168.3,4168.2,0.64586]
[1758662535329,0.7369,4168.3,4168.2,0.86076]
[1758662535534,0.3344,4168.9,4168.8,0.2189]
[1758662535747,0.8856,4169.0,4168.9,0.65149]
[1758662536223,0.5582,4169.0,4168.9,1.18489]
[1758662536826,0.5524,4169.5,4169.4,0.43154]
[1758662537032,1.40062518,4169.5,4169.4,0.87034]
[1758662538437,1.83215518,4169.5,4169.4,0.87034]
[1758662539931,0.3549,4169.0,4168.9,3.6466]
[1758662540237,0.3549,4169.0,4168.9,3.9611]
[1758662540238,0.6893,4169.0,4168.9,3.9611]
[1758662540732,0.6893,4169.0,4168.9,4.39269]
[1758662540937,0.5582,4169.0,4168.9,4.39269]
[1758662541335,0.8944,4169.0,4168.9,4.07819]
[1758662541540,0.8944,4169.0,4168.9,0.87039]
[1758662542229,0.6817,4169.5,4169.4,0.87034]
[1758662542435,0.6817,4169.5,4169.4,1.18484]
[1758662542825,0.8868,4169.5,4169.4,1.18484]
[1758662543340,0.8868,4169.5,4169.4,0.87034]
[1758662545244,0.4579,4169.5,4168.8,0.3068]
[1758662545543,0.4579,4169.5,4168.8,1.1644]
[1758662545544,0.7712,4168.9,4168.8,1.1644]
[1758662545743,0.7712,4168.9,4168.8,1.4054]
[1758662546251,0.1235,4169.5,4169.4,0.65414]
[1758662546252,0.5594,4169.5,4169.4,0.65414]
[1758662546539,0.8947,4169.5,4169.4,1.16434]
[1758662554446,3.5431,4169.7,4169.4,0.426]
[1758662554653,0.3353,4169.7,4169.6,1.16432]
[1758662555549,0.5551,4169.7,4169.6,1.16432]
[1758662556145,0.5551,4169.7,4169.6,0.7328]
[1758662556348,0.7712,4169.7,4169.6,0.65412]
[1758662556647,1.20271,4169.7,4169.6,0.43152]
[1758662556848,0.7712,4169.7,4169.6,0.43152]
[1758662557450,0.7712,4169.7,4169.6,0.65412]
[1758662558753,1.20271,4169.7,4169.6,0.65412]
[1758662559752,1.20271,4169.7,4169.6,0.43152]
[1758662565254,0.2198,4169.4,4169.3,3.2078]
[1758662565450,0.7712,4169.4,4169.3,0.43155]
[1758662565857,0.7712,4169.4,4169.3,0.65415]
[1758662566950,3.5431,4169.7,4169.6,0.43152]
[1758662567153,3.5431,4169.7,4169.6,0.85752]
[1758662567360,3.7629,4169.7,4169.6,1.16432]
[1758662568354,0.3433,4170.0,4169.9,0.43149]
[1758662568561,1.07487012,4170.0,4169.9,0.85749]
[1758662568960,1.41017012,4170.0,4169.9,0.85749]
[1758662569559,0.85077012,4170.0,4169.9,1.16429]
[1758662569762,0.3353,4170.0,4169.9,1.16429]
[1758662570957,0.5551,4170.0,4169.9,1.16429]
[1758662571855,0.4673,4170.0,4169.6,0.241]
[1758662572156,0.7712,4169.7,4169.6,0.89512]
[1758662572355,0.7712,4169.7,4169.6,1.09852]
[1758662572556,0.7712,4169.7,4169.6,1.40532]
[1758662572962,0.5551,4169.7,4169.6,1.40532]
[1758662573163,0.3353,4169.7,4169.6,1.40532]
[1758662575768,0.6697,4170.0,4169.9,1.17449]
[1758662577667,0.6697,4170.0,4169.9,0.43149]
[1758662577668,0.8776,4170.0,4169.9,0.43149]
[1758662579068,1.30908,4170.0,4169.9,0.64529]
[1758662579367,1.30908,4170.0,4169.9,0.43149]
[1758662580268,1.30908,4170.0,4169.9,0.64529]
[1758662580468,0.8776,4170.0,4169.9,0.64529]
[1758662580968,1.30908,4170.0,4169.9,0.64529]
[1758662581468,1.30908,4170.0,4169.9,0.43149]
[1758662582658,0.7496,4169.8,4169.7,0.2138]
[1758662582863,0.7496,4169.8,4169.4,0.241]
[1758662583170,0.8776,4169.5,4169.4,1.10794]
[1758662583564,0.8776,4169.5,4169.4,1.41554]
[1758662583769,0.8776,4169.5,4169.4,1.10794]
[1758662584069,0.8776,4169.5,4169.4,1.41554]
[1758662584867,0.5417,4169.5,4169.4,1.41554]
[1758662585767,0.3282,4169.5,4169.4,1.41554]
[1758662590375,0.3415,4170.0,4169.9,0.86689]
[1758662590578,0.85695651,4170.0,4169.9,1.17449]
[1758662590987,1.39305651,4170.0,4169.9,1.17449]
[1758662592777,1.39356814,4170.0,4169.9,1.17449]
[1758662593782,1.39356814,4170.0,4169.9,0.86689]
[1758662594281,1.82504814,4170.0,4169.9,0.86689]
[1758662595383,1.39356814,4170.0,4169.9,0.86689]
[1758662601294,1.82504814,4170.0,4169.9,0.43149]
[1758662603196,1.39356814,4170.0,4169.9,0.43149]
[1758662603394,1.39356814,4170.0,4169.9,0.63689]
[1758662606201,1.82504814,4170.0,4169.9,0.43149]
[1758662606800,1.39356814,4170.0,4169.9,0.43149]
[1758662607896,1.39356814,4170.0,4169.9,0.84579]
[1758662608091,1.39356814,4170.0,4169.9,1.16929]
[1758662608893,0.3029,4170.3,4170.2,0.43146]
[1758662609103,3.623,4170.9,4170.8,0.6368]
[1758662609399,4.05439,4170.9,4170.8,0.6368]
[1758662609593,0.7181,4170.9,4170.8,0.8457]
[1758662609794,0.7181,4170.9,4170.8,1.1692]
[1758662610497,0.7181,4170.9,4170.8,0.8457]
[1758662610702,0.1307,4170.5,4170.4,3.2078]
[1758662610892,0.8488,4170.5,4170.4,3.4488]
[1758662611093,0.8488,4170.5,4170.4,3.6542]
[1758662611596,0.8488,4170.5,4170.4,3.84464]
[1758662611793,0.8488,4170.5,4170.4,3.88024]
[1758662612794,0.4152,4169.9,4169.8,3.4132]
[1758662613002,0.7181,4169.9,4169.8,4.0857]
[1758662613595,0.7181,4169.9,4169.8,4.2946]
[1758662616100,0.7181,4169.9,4169.8,4.6181]
[1758662619500,0.8488,4169.0,4168.9,0.63701]
[1758662619803,0.8488,4169.0,4168.9,0.84591]
[1758662620098,0.8488,4169.0,4168.9,1.16941]
[1758662620498,1.28041,4169.0,4168.8,0.241]
[1758662620708,0.6355,4168.5,4168.1,0.2054]
[1758662621002,0.7181,4168.4,4168.3,0.43168]
[1758662621396,0.7181,4168.4,4168.3,0.63708]
[1758662621798,0.7181,4168.4,4168.3,0.43168]
[1758662625109,0.7181,4168.4,4168.3,0.63708]
[1758662634208,1.14977,4168.4,4168.3,0.63708]
[1758662634404,1.17251,4168.1,4168.0,0.85212]
[1758662634605,0.7408,4168.1,4168.0,0.43172]
[1758662634810,1.17251,4168.1,4168.0,0.43172]
[1758662635803,0.7408,4168.1,4168.0,0.43172]
[1758662636610,0.7408,4168.1,4168.0,0.85212]
[1758662636812,0.7408,4168.1,4168.0,1.17732]
[1758662637211,0.7408,4168.1,4168.0,0.85212]
[1758662640615,0.5324,4168.1,4168.0,1.17732]
[1758662641213,0.7408,4168.1,4168.0,0.85212]
[1758662642014,0.7408,4168.1,4167.7,0.43175]
[1758662642207,0.1241,4167.5,4167.4,0.2109]
[1758662642408,0.5426,4167.5,4167.4,0.43178]
[1758662642912,0.8649,4167.5,4167.4,0.43178]
[1758662643315,0.8649,4167.5,4167.4,0.64268]
[1758662651024,0.8649,4167.5,4167.4,0.85218]
[1758662651918,0.3223,4167.5,4167.4,1.17738]
[1758662652121,3.2078,4168.1,4168.0,1.20272]
[1758662652820,3.2078,4168.6,4168.4,0.3336]
[1758662653025,3.2078,4168.6,4168.5,0.771]
[1758662653226,3.2078,4168.6,4168.5,1.20266]
[1758662653428,3.5332,4168.6,4168.5,1.20266]
[1758662654728,3.7488,4168.6,4168.5,1.20266]
[1758662655627,0.6717,4169.0,4168.9,0.43162]
[1758662655926,0.8765,4169.0,4168.9,0.86902]
[1758662659625,0.8765,4169.0,4168.9,1.20262]
[1758662660326,0.3254,4169.0,4168.9,1.20262]
[1758662661421,0.541,4169.0,4168.9,1.20262]
[1758662661821,0.3254,4169.0,4168.9,1.20262]
[1758662662026,0.3254,4169.4,4169.3,0.86898]
[1758662662230,3.9898,4169.8,4169.7,0.86894]
[1758662662423,4.1946,4169.8,4169.7,0.86894]
[1758662662728,4.1946,4169.8,4169.7,0.2206]
[1758662662929,4.1946,4169.8,4169.7,0.65214]
[1758662663530,4.1946,4169.8,4169.7,0.43154]
[1758662663726,4.1946,4169.8,4169.7,0.65524]
[1758662663930,3.9536,4169.8,4169.7,0.65524]
[1758662667533,3.9536,4169.8,4169.7,0.43154]
[1758662668537,1.17733,4169.8,4169.7,0.43154]
[1758662669237,0.7458,4169.8,4169.7,0.43154]
[1758662670233,0.7458,4169.8,4169.7,0.65524]
[1758662670432,0.7458,4169.8,4169.7,1.17364]
[1758662671130,0.7458,4169.8,4169.7,0.85944]
[1758662672029,1.17733,4169.8,4169.7,0.43154]
[1758662672439,0.7458,4169.8,4169.7,0.43154]
[1758662672640,0.7458,4169.8,4169.7,0.65524]
[1758662676057,1.17733,4169.8,4169.7,0.65524]
[1758662676746,0.7458,4169.8,4169.7,0.65524]
[1758662684155,0.541,4169.8,4169.7,1.17364]
[1758662684361,3.6447,4170.4,4170.3,1.17358]
[1758662684957,3.9632,4170.4,4170.3,1.17358]
[1758662686961,3.9632,4170.4,4170.3,0.85938]
[1758662688865,3.9632,4170.4,4170.3,1.17358]
[1758662689560,3.7485,4170.4,4170.3,1.17358]
[1758662692366,3.9632,4170.4,4170.3,1.17358]
[1758662693766,0.7554,4170.4,4170.3,1.17358]
[1758662694760,0.3185,4170.4,4170.3,1.17358]
[1758662694967,0.3185,4170.4,4170.3,1.41458]
[1758662696761,3.2078,4170.9,4170.5,1.07863]
[1758662696957,0.5249,4170.8,4170.7,1.17894]
[1758662700163,0.5249,4170.8,4170.7,1.41994]
[1758662702768,3.4242,4171.4,4171.0,0.6336]
[1758662702973,3.6398,4171.4,4171.3,0.43137]
[1758662703274,3.9483,4171.4,4171.3,0.43137]
[1758662703871,0.7405,4170.9,4170.8,0.64923]
[1758662704079,0.3085,4170.8,4170.5,3.2078]
[1758662704376,0.5547,4170.5,4170.4,0.43147]
[1758662704778,0.8632,4170.5,4170.4,0.43147]
[1758662706079,0.8632,4170.5,4170.4,0.64927]
[1758662709486,0.8632,4170.5,4170.4,1.17897]
[1758662715287,0.8632,4170.5,4170.4,0.85147]
[1758662715490,0.8632,4170.5,4170.4,0.64927]
[1758662716892,0.8632,4170.5,4170.4,0.85087]
[1758662717095,0.8632,4170.5,4170.4,1.17127]
[1758662719385,0.5249,4170.5,4170.4,1.17127]
[1758662720787,0.7481,4170.5,4170.4,1.17127]
[1758662720985,0.8787,4170.5,4170.4,0.85087]
[1758662721899,0.8787,4170.5,4170.4,1.17127]
[1758662724994,0.5249,4170.5,4170.4,1.17127]
[1758662725301,0.6459,4170.5,4170.4,1.17127]
[1758662725503,0.867,4170.5,4170.4,1.17127]
[1758662726195,0.867,4170.5,4170.4,0.85087]
[1758662726397,0.7685,4170.2,4170.1,2.35618108]
[1758662726699,0.66996122,4170.2,4170.1,3.12838108]
[1758662727295,0.66996122,4170.2,4170.1,1.195]
[1758662727496,0.66996122,4170.2,4170.1,0.6725]
[1758662727695,0.66996122,4170.2,4170.1,0.8847]
[1758662727899,0.66996122,4170.2,4170.1,1.195]
[1758662728194,0.66996122,4170.2,4170.1,1.4159]
[1758662728704,0.5474,4170.8,4170.7,0.4331]
[1758662729001,0.5474,4170.8,4170.7,0.7434]
[1758662729200,0.5474,4170.8,4170.7,1.17484]
[1758662730106,0.7685,4170.8,4170.7,0.43144]
[1758662730506,0.7685,4170.8,4170.7,1.17484]
[1758662734096,3.6451,4171.4,4171.3,0.64357]
[1758662734402,4.1579637,4171.4,4171.3,0.7434]
[1758662734601,4.1579637,4171.4,4171.3,1.17477]
[1758662734905,4.4891637,4171.4,4171.3,1.17477]
[1758662735603,4.9205237,4171.4,4171.3,1.17477]
[1758662735805,4.4891637,4171.4,4171.3,1.17477]
[1758662736506,4.7301637,4171.4,4171.3,1.17477]
[1758662736909,1.2813637,4171.4,4171.3,1.17477]
[1758662737209,0.7685,4171.4,4171.3,1.17477]
[1758662738109,4.40766,4171.4,4171.3,0.7434]
[1758662738318,4.92013753,4171.4,4171.3,0.2122]
[1758662738614,4.40766,4171.4,4171.3,0.2122]
[1758662738813,4.92013757,4171.4,4171.3,0.64357]
[1758662739302,4.40766,4171.4,4171.3,0.64357]
[1758662739506,4.92008888,4171.4,4171.3,0.64357]
[1758662739714,4.48872888,4171.4,4171.3,0.64357]
[1758662740215,3.9763,4171.4,4171.3,0.64357]
[1758662740514,3.9763,4171.4,4171.3,0.95387]
[1758662740907,0.7685,4171.4,4171.3,0.95387]
[1758662741517,1.19986,4171.4,4171.3,0.64357]
[1758662741719,1.19986,4171.4,4170.8,0.241]
[1758662741720,0.7685,4171.1,4171.0,0.64361]
[1758662742120,0.7685,4171.1,4171.0,0.95391]
[1758662743117,0.7685,4171.1,4171.0,0.43141]
[1758662743818,0.7685,4171.1,4171.0,0.95391]
[1758662745319,0.7685,4171.1,4171.0,1.17481]
[1758662746114,3.2078,4171.9,4171.8,0.43132]
[1758662746311,3.9763,4171.9,4171.8,1.17472]